fUSD/lending_fUSD_20250616
["ID","MTS","AMOUNT","RATE_DAILY","PERIOD"]
[366166102,1750096245673,-490.0,0.00015888,2]
[366166103,1750096245686,-539.23,0.00015888,2]
[366166104,1750096245698,-490.0,0.00015888,2]
[366166105,1750096245711,-490.0,0.00015888,2]
[366166106,1750096245723,-671.53,0.00015888,2]
[366166107,1750096245735,-490.0,0.00015888,2]
[366166108,1750096245747,-535.56,0.00015888,2]
[366166109,1750096245759,-845.52,0.00015888,2]
[366166110,1750096245771,-895.2,0.00015888,2]
[366166111,1750096245783,-741.22,0.00015888,2]
[366166112,1750096245795,-2238.48,0.00015888,2]
[366166113,1750096245806,-490.0,0.00015888,2]
[366166114,1750096245818,-558.64,0.00015888,2]
[366166115,1750096245830,-601.95,0.00015888,2]
[366166117,1750096245842,-151.2,0.00015888,2]
[366166118,1750096245855,-490.0,0.00015889,2]
[366166119,1750096245866,-490.0,0.00015889,2]
[366166120,1750096245878,-490.0,0.00015889,2]
[366166121,1750096245891,-490.0,0.00015889,2]
[366166122,1750096245903,-490.0,0.00015889,2]
[366166123,1750096245916,-490.0,0.00015889,2]
[366166124,1750096245929,-440.07099439,0.00015889,2]
[366166125,1750096245941,-490.0,0.00015889,2]
[366166126,1750096245952,-490.0,0.00015889,2]
[366166127,1750096245965,-490.0,0.00015889,2]
[366166128,1750096245977,-490.0,0.00015889,2]
[366166129,1750096245989,-490.0,0.00015889,2]
[366166130,1750096246000,-490.0,0.00015889,2]
[366166131,1750096246012,-490.0,0.00015889,2]
[366166132,1750096246026,-490.0,0.00015889,2]
[366166133,1750096246039,-490.0,0.00015889,2]
[366166134,1750096246052,-490.0,0.00015889,2]
[366166135,1750096246063,-490.0,0.00015889,2]
[366166136,1750096246074,-629.9,0.00015889,2]
[366166137,1750096246086,-490.0,0.00015889,2]
[366166138,1750096246099,-490.0,0.00015889,2]
[366166139,1750096246110,-490.0,0.00015889,2]
[366166140,1750096246121,-490.0,0.00015889,2]
[366166141,1750096246133,-609.98,0.00015889,2]
[366166142,1750096246147,-490.0,0.00015889,2]
[366166143,1750096246158,-235.86970207,0.00015889,2]
[366166144,1750096246170,-490.0,0.00015889,2]
[366166145,1750096246181,-490.0,0.00015889,2]
[366166146,1750096246195,-490.0,0.00015889,2]
[366166147,1750096246207,-490.0,0.00015889,2]
[366166148,1750096246218,-490.0,0.00015889,2]
[366166149,1750096246231,-490.0,0.00015889,2]
[366166150,1750096246243,-490.0,0.00015889,2]
[366166151,1750096246256,-490.0,0.00015889,2]
[366166152,1750096246267,-490.0,0.00015889,2]
[366166153,1750096246280,-490.0,0.00015889,2]
[366166154,1750096246297,-490.0,0.00015889,2]
[366166155,1750096246310,-599.76,0.00015889,2]
[366166156,1750096246323,-490.0,0.00015889,2]
[366166157,1750096246335,-490.0,0.00015889,2]
[366166158,1750096246346,-490.0,0.00015889,2]
[366166159,1750096246357,-490.0,0.00015889,2]
[366166160,1750096246370,-490.0,0.00015889,2]
[366166161,1750096246381,-490.0,0.00015889,2]
[366166162,1750096246392,-490.0,0.00015889,2]
[366166163,1750096246403,-276.90554315,0.00015889,2]
[366166164,1750096246416,-490.0,0.00015889,2]
[366166165,1750096246427,-539.11,0.00015889,2]
[366166166,1750096246440,-490.0,0.00015889,2]
[366166167,1750096246453,-490.0,0.00015889,2]
[366166168,1750096246468,-490.0,0.00015889,2]
[366166169,1750096246480,-490.0,0.00015889,2]
[366166170,1750096246492,-750.07,0.00015889,2]
[366166171,1750096246504,-490.0,0.00015889,2]
[366166172,1750096246516,-490.0,0.00015889,2]
[366166173,1750096246527,-502.79,0.00015889,2]
[366166174,1750096246539,-490.0,0.00015889,2]
[366166175,1750096246551,-598.9,0.00015889,2]
[366166176,1750096246563,-490.0,0.00015889,2]
[366166177,1750096246576,-490.0,0.00015889,2]
[366166178,1750096246588,-490.95,0.00015889,2]
[366166179,1750096246600,-490.0,0.00015889,2]
[366166180,1750096246613,-490.0,0.00015889,2]
[366166181,1750096246625,-565.15,0.00015889,2]
[366166182,1750096246636,-490.0,0.00015889,2]
[366166183,1750096246648,-490.0,0.00015889,2]
[366166184,1750096246659,-533.2,0.00015889,2]
[366166185,1750096246670,-490.0,0.00015889,2]
[366166186,1750096246682,-840.35,0.00015889,2]
[366166187,1750096246694,-490.0,0.00015889,2]
[366166188,1750096246706,-698.15,0.00015889,2]
[366166189,1750096246717,-490.0,0.00015889,2]
[366166190,1750096246729,-490.0,0.00015889,2]
[366166191,1750096246741,-490.0,0.00015889,2]
[366166192,1750096246753,-490.0,0.00015889,2]
[366166193,1750096246764,-622.86,0.00015889,2]
[366166194,1750096246775,-490.0,0.00015889,2]
[366166195,1750096246787,-1179.28,0.00015889,2]
[366166196,1750096246799,-679.5,0.00015889,2]
[366166197,1750096246811,-490.0,0.00015889,2]
[366166198,1750096246821,-490.0,0.00015889,2]
[366166199,1750096246834,-490.0,0.00015889,2]
[366166200,1750096246845,-490.0,0.00015889,2]
[366166201,1750096246856,-490.0,0.00015889,2]
[366166202,1750096246867,-490.0,0.00015889,2]
[366166203,1750096246879,-490.0,0.00015889,2]
[366166204,1750096246890,-707.98,0.00015889,2]
[366166205,1750096246901,-490.0,0.00015889,2]
[366166206,1750096246913,-645.0,0.00015889,2]
[366166207,1750096246925,-490.0,0.00015889,2]
[366166208,1750096246937,-624.15,0.00015889,2]
[366166209,1750096246948,-490.0,0.00015889,2]
[366166210,1750096246960,-560.85593359,0.00015889,2]
[366166211,1750096248489,-420.81406641,0.00015889,2]
[366166212,1750096248499,-498.71,0.00015889,2]
[366166213,1750096248509,-232.23309412,0.00015889,2]
[366166214,1750096248522,-257.76690588,0.00015889,2]
[366166215,1750096248532,-795.47,0.00015889,2]
[366166216,1750096248543,-490.0,0.00015889,2]
[366166217,1750096248553,-490.0,0.00015889,2]
[366166218,1750096248564,-490.0,0.00015889,2]
[366166219,1750096248574,-483.86467891,0.00015889,2]
[366166220,1750096249833,-490.0,0.00015723,2]
[366166221,1750096249843,-490.0,0.00015723,2]
[366166222,1750096249853,-6.13532109,0.00015889,2]
[366166223,1750096249863,-490.0,0.00015889,2]
[366166224,1750096249873,-683.26,0.00015889,2]
[366166225,1750096249883,-490.0,0.00015889,2]
[366166226,1750096249893,-490.0,0.00015889,2]
[366166227,1750096249902,-936.81,0.00015889,2]
[366166228,1750096249911,-490.0,0.00015889,2]
[366166229,1750096249921,-490.0,0.00015889,2]
[366166230,1750096249932,-490.0,0.00015889,2]
[366166231,1750096249942,-490.0,0.00015889,2]
[366166232,1750096249952,-490.0,0.00015889,2]
[366166233,1750096249961,-1651.83,0.00015889,2]
[366166234,1750096249971,-490.0,0.00015889,2]
[366166235,1750096249981,-490.0,0.00015889,2]
[366166236,1750096249991,-490.0,0.00015889,2]
[366166237,1750096250001,-490.0,0.00015889,2]
[366166238,1750096250011,-508.21467892,0.00015889,2]
[366166239,1750096250024,-699.66532108,0.00015889,2]
[366166240,1750096250035,-490.0,0.00015889,2]
[366166241,1750096250044,-217.58085355,0.00015889,2]
[366166242,1750096250904,-200.0,0.000156,5]
[366166243,1750096250914,-490.0,0.00015724,2]
[366166244,1750096250923,-490.0,0.00015724,2]
[366166245,1750096250933,-490.0,0.00015803,2]
[366166246,1750096250942,-272.41914645,0.00015889,2]
[366166247,1750096250952,-594.62,0.00015889,2]
[366166248,1750096250961,-490.0,0.00015889,2]
[366166249,1750096250970,-763.53,0.00015889,2]
[366166250,1750096250980,-490.0,0.00015889,2]
[366166251,1750096250990,-490.0,0.00015889,2]
[366166252,1750096250999,-1785.81,0.00015889,2]
[366166253,1750096251009,-490.0,0.00015889,2]
[366166254,1750096251018,-490.0,0.00015889,2]
[366166255,1750096251027,-961.2,0.00015889,2]
[366166256,1750096251036,-596.18,0.00015889,2]
[366166257,1750096251046,-1538.68,0.00015889,2]
[366166258,1750096251055,-1125.08,0.00015889,2]
[366166259,1750096251065,-490.0,0.00015889,2]
[366166260,1750096251074,-490.0,0.00015889,2]
[366166261,1750096251083,-1003.08,0.00015889,2]
[366166262,1750096251092,-1452.11,0.00015889,2]
[366166263,1750096251102,-490.0,0.00015889,2]
[366166264,1750096251111,-494.67,0.00015889,2]
[366166265,1750096251120,-490.0,0.00015889,2]
[366166266,1750096251129,-1031.7,0.00015889,2]
[366166267,1750096251139,-490.0,0.00015889,2]
[366166268,1750096251151,-490.0,0.00015889,2]
[366166269,1750096251160,-1593.78,0.00015889,2]
[366166270,1750096251169,-1000.35,0.00015889,2]
[366166271,1750096251180,-490.0,0.00015889,2]
[366166272,1750096251191,-490.0,0.00015889,2]
[366166273,1750096251200,-638.26582264,0.00015889,2]
[366166274,1750096251210,-532.92191011,0.00015889,2]
[366166275,1750096251245,-692.75,0.00015723,2]
[366166276,1750096251254,-4.61808989,0.00015889,2]
[366166277,1750096251264,-490.0,0.00015889,2]
[366166278,1750096251273,-490.0,0.00015889,2]
[366166279,1750096251283,-250.97988713,0.00015889,2]
[366166280,1750096251313,-500.0,0.000157,5]
[366166281,1750096251323,-239.02011287,0.00015889,2]
[366166282,1750096251332,-490.0,0.00015889,2]
[366166283,1750096251342,-490.0,0.00015889,2]
[366166284,1750096251351,-1272.15,0.00015889,2]
[366166285,1750096251361,-607.98080689,0.00015889,2]
[366166286,1750096251370,-490.0,0.00015889,2]
[366166287,1750096251380,-191.33170524,0.00015889,2]
[366166288,1750096265330,5563.0,0.000122,5]
[366166289,1750096271716,222.0,0.00014688,2]
[366166290,1750096403873,1627.63995,0.00024649,120]
[366166291,1750096421527,379.0,0.00014688,2]
[366166292,1750096541668,200.0,0.0001515,2]
[366166293,1750096636427,200.0,0.00015,2]
[366166294,1750096679536,200.0,0.00015,2]
[366166295,1750096694370,200.0,0.00014842,7]
[366166296,1750096748973,278.66,0.00014847,2]
[366166297,1750096759790,159.21,0.00014847,2]
[366166298,1750096763781,300.0,0.00015,2]
[366166299,1750096773027,150.0,0.00015491,2]
[366166300,1750096829108,4371.41168,0.000148,2]
[366166301,1750096829139,19528.58832,0.000148,2]
[366166302,1750096829763,555.0,0.000151,2]
[366166303,1750096841583,201.0,0.0001515,2]
[366166304,1750096850417,173.86162,0.00015425,2]
[366166305,1750096882924,555.0,0.000151,2]
[366166306,1750096887675,226.08,0.00014824,2]
[366166307,1750096901649,200.0,0.00014642,2]
[366166308,1750096901904,200.0,0.00015141,2]
[366166309,1750096927007,555.0,0.00015,2]
[366166310,1750096953524,555.0,0.000151,2]
[366166311,1750096956246,2000.0,0.00014775,2]
[366166312,1750096980520,250.0,0.00014775,2]
[366166313,1750096995901,792.38907509,0.00015427,2]
[366166314,1750097005270,444.0,0.00015,2]
[366166315,1750097060235,555.0,0.000154,2]
[366166316,1750097120810,166.67,0.00015176,2]
[366166317,1750097201711,201.0,0.00014642,2]
[366166318,1750097213245,333.0,0.00015,2]
[366166319,1750097257364,666.0,0.000154,2]
[366166320,1750097261590,200.0,0.00014639,2]
[366166321,1750097261851,200.0,0.00015143,2]
[366166322,1750097292462,333.0,0.000154,2]
[366166331,1750097375360,1000.0,0.00014729,2]
[366166332,1750097387908,4204.59,0.00015423,2]
[366166341,1750097432207,-333.0,0.000155,2]
[366166342,1750097432217,-333.0,0.000155,2]
[366166343,1750097432227,-1016.33057766,0.00015501,2]
[366166344,1750097432247,-183.66942234,0.00015501,2]
[366166345,1750097432256,-429.31407439,0.00015502,2]
[366166346,1750097432268,-12184.36592561,0.00015502,2]
[366166347,1750097432278,-250.0,0.00015544,2]
[366166348,1750097432287,-4204.56,0.00015573,2]
[366166349,1750097432297,-8409.12,0.00015587,2]
[366166350,1750097432306,-1000.0,0.00015599,2]
[366166351,1750097432316,-250.0,0.00015599,2]
[366166352,1750097432325,-15555.0,0.000156,2]
[366166353,1750097432335,-1000.0,0.000156,2]
[366166354,1750097432344,-331.99689202,0.00015622,2]
[366166355,1750097432355,-4580.68289793,0.00015622,2]
[366166356,1750097432364,-210.00689641,0.00015622,2]
[366166357,1750097432374,-458.79343189,0.00015641,2]
[366166358,1750097432383,-200.0,0.00015647,3]
[366166359,1750097432393,-4580.68289793,0.00015649,2]
[366166360,1750097432402,-4580.68289793,0.00015676,2]
[366166361,1750097432411,-1957.856,0.00015687,2]
[366166362,1750097432420,-207.4,0.00015687,2]
[366166363,1750097432431,-12896.71007038,0.00015696,2]
[366166364,1750097432444,-1210.32606637,0.00015696,2]
[366166365,1750097432455,-6901.28386325,0.00015696,2]
[366166366,1750097432465,-268.62470245,0.00015696,2]
[366166367,1750097432501,-1135.8514,0.00015696,2]
[366166374,1750097432624,-3071.57969407,0.00015696,2]
[366166405,1750097438155,-245.04415365,0.00015572,2]
[366166406,1750097438166,-294.74766466,0.00015572,2]
[366166407,1750097438175,-500.0,0.00015572,2]
[366166408,1750097438185,-340.04247264,0.00015572,2]
[366166409,1750097438194,-1262.9308729,0.00015696,2]
[366166410,1750097438295,-499.11804958,0.00015696,2]
[366166411,1750097438310,-2382.34935512,0.00015696,2]
[366166412,1750097438360,-14101.09592588,0.00015696,2]
[366166413,1750097438369,-19999.99,0.00015696,2]
[366166414,1750097438379,-4580.68289793,0.00015703,2]
[366166415,1750097438388,-268.41,0.00015712,2]
[366166416,1750097438397,-150.99,0.00015713,2]
[366166417,1750097438407,-151.0,0.00015714,2]
[366166418,1750097438416,-151.0,0.00015714,2]
[366166419,1750097438426,-254.12808708,0.00015721,2]
[366166420,1750097438435,-182.82272713,0.00015721,2]
[366166421,1750097438444,-234.61766976,0.00015721,2]
[366166422,1750097438455,-500.0,0.00015721,2]
[366166423,1750097438467,-513.79785258,0.00015721,2]
[366166424,1750097438476,-594.21,0.00015721,2]
[366166426,1750097438486,-685.48,0.00015721,2]
[366166428,1750097438496,-911.86,0.00015721,2]
[366166430,1750097438505,-490.0,0.00015721,2]
[366166432,1750097438518,-490.0,0.00015721,2]
[366166433,1750097438530,-894.67,0.00015721,2]
[366166435,1750097438540,-554.31,0.00015721,2]
[366166437,1750097438550,-490.0,0.00015721,2]
[366166439,1750097438559,-710.37,0.00015721,2]
[366166441,1750097438570,-4120.71,0.00015721,2]
[366166443,1750097438580,-578.79,0.00015721,2]
[366166445,1750097438590,-562.72,0.00015721,2]
[366166447,1750097438602,-1354.53,0.00015721,2]
[366166449,1750097438611,-500.0,0.00015721,2]
[366166451,1750097438621,-607.35,0.00015721,2]
[366166453,1750097438631,-2707.8,0.00015721,2]
[366166455,1750097438640,-490.0,0.00015721,2]
[366166457,1750097438650,-490.0,0.00015721,2]
[366166459,1750097438660,-490.0,0.00015721,2]
[366166461,1750097438670,-490.0,0.00015721,2]
[366166463,1750097438679,-490.0,0.00015721,2]
[366166465,1750097438690,-829.3,0.00015721,2]
[366166467,1750097438699,-490.0,0.00015721,2]
[366166469,1750097438709,-2613.83,0.00015721,2]
[366166471,1750097438718,-507.51,0.00015721,2]
[366166473,1750097438728,-796.34,0.00015721,2]
[366166475,1750097438738,-824.05,0.00015721,2]
[366166477,1750097438748,-490.0,0.00015721,2]
[366166479,1750097438757,-490.0,0.00015721,2]
[366166481,1750097438766,-490.0,0.00015721,2]
[366166483,1750097438776,-753.23,0.00015721,2]
[366166485,1750097438787,-490.0,0.00015721,2]
[366166487,1750097438797,-641.31,0.00015721,2]
[366166489,1750097438807,-490.0,0.00015721,2]
[366166491,1750097438817,-890.33,0.00015721,2]
[366166493,1750097438826,-710.77,0.00015721,2]
[366166495,1750097438836,-677.09,0.00015721,2]
[366166497,1750097438846,-1123.89794242,0.00015722,5]
[366166499,1750097438855,-168.72,0.00015722,2]
[366166501,1750097438866,-797.95,0.00015722,2]
[366166503,1750097438875,-490.0,0.00015722,2]
[366166505,1750097438885,-214.18151109,0.00015722,2]
[366166507,1750097438894,-490.0,0.00015722,2]
[366166509,1750097438904,-636.13047464,0.00015722,2]
[366166511,1750097438914,-490.0,0.00015722,2]
[366166513,1750097438925,-490.0,0.00015722,2]
[366166515,1750097438934,-490.0,0.00015722,2]
[366166517,1750097438944,-490.0,0.00015722,2]
[366166519,1750097438953,-490.0,0.00015722,2]
[366166521,1750097438963,-490.0,0.00015722,2]
[366166523,1750097438972,-490.0,0.00015722,2]
[366166525,1750097438982,-490.0,0.00015722,2]
[366166527,1750097438991,-490.0,0.00015722,2]
[366166529,1750097439000,-490.0,0.00015722,2]
[366166531,1750097439010,-490.0,0.00015722,2]
[366166533,1750097439019,-490.0,0.00015722,2]
[366166535,1750097439029,-490.0,0.00015722,2]
[366166537,1750097439038,-490.0,0.00015722,2]
[366166539,1750097439048,-490.0,0.00015722,2]
[366166541,1750097439057,-490.0,0.00015722,2]
[366166543,1750097439067,-490.0,0.00015722,2]
[366166545,1750097439076,-490.0,0.00015722,2]
[366166547,1750097439086,-490.0,0.00015722,2]
[366166548,1750097439095,-490.0,0.00015722,2]
[366166550,1750097439104,-490.0,0.00015722,2]
[366166552,1750097439114,-544.11,0.00015722,2]
[366166554,1750097439124,-490.0,0.00015722,2]
[366166556,1750097439134,-250.0,0.00015722,2]
[366166558,1750097439143,-490.0,0.00015722,2]
[366166560,1750097439152,-490.0,0.00015722,2]
[366166562,1750097439162,-490.0,0.00015722,2]
[366166564,1750097439171,-490.0,0.00015722,2]
[366166566,1750097439180,-161.05211479,0.00015722,2]
[366166568,1750097439189,-411.74129481,0.00015722,2]
[366166570,1750097439199,-180.0,0.00015722,2]
[366166572,1750097439209,-490.0,0.00015722,2]
[366166574,1750097439219,-490.0,0.00015722,2]
[366166576,1750097439229,-490.0,0.00015722,2]
[366166578,1750097439241,-490.0,0.00015722,2]
[366166580,1750097439251,-490.0,0.00015722,2]
[366166582,1750097439260,-490.0,0.00015722,2]
[366166584,1750097439270,-490.0,0.00015722,2]
[366166586,1750097439279,-490.0,0.00015722,2]
[366166588,1750097439289,-493.77422281,0.00015722,2]
[366166590,1750097439298,-490.0,0.00015722,2]
[366166592,1750097439308,-490.0,0.00015722,2]
[366166594,1750097439318,-490.0,0.00015722,2]
[366166596,1750097439327,-718.04,0.00015722,2]
[366166598,1750097439337,-491.95029201,0.00015722,2]
[366166600,1750097439346,-490.0,0.00015722,2]
[366166602,1750097439355,-495.17346269,0.00015722,2]
[366166604,1750097439365,-490.0,0.00015722,2]
[366166606,1750097439375,-490.0,0.00015722,2]
[366166608,1750097439384,-491.07800072,0.00015722,2]
[366166610,1750097439394,-490.0,0.00015722,2]
[366166612,1750097439403,-490.0,0.00015722,2]
[366166614,1750097439412,-491.16205614,0.00015722,2]
[366166616,1750097439422,-490.0,0.00015722,2]
[366166618,1750097439431,-495.21173851,0.00015722,2]
[366166620,1750097439441,-496.89848341,0.00015722,2]
[366166622,1750097439450,-438.26434128,0.00015722,2]
[366166624,1750097439460,-814.42,0.00015722,2]
[366166626,1750097439470,-490.0,0.00015722,2]
[366166628,1750097439479,-490.0,0.00015722,2]
[366166630,1750097439489,-490.0,0.00015722,2]
[366166632,1750097439499,-491.57658747,0.00015722,2]
[366166634,1750097439508,-490.0,0.00015722,2]
[366166636,1750097439518,-490.0,0.00015722,2]
[366166638,1750097439531,-490.0,0.00015722,2]
[366166640,1750097439540,-403.64228423,0.00015722,2]
[366166642,1750097439550,-490.0,0.00015722,2]
[366166644,1750097439559,-770.9,0.00015722,2]
[366166646,1750097439570,-490.0,0.00015722,2]
[366166648,1750097439579,-490.0,0.00015722,2]
[366166650,1750097439589,-494.05734832,0.00015722,2]
[366166652,1750097439601,-490.0,0.00015722,2]
[366166654,1750097439611,-490.0,0.00015722,2]
[366166656,1750097439620,-490.0,0.00015722,2]
[366166658,1750097439630,-490.0,0.00015722,2]
[366166660,1750097439639,-490.0,0.00015722,2]
[366166662,1750097439649,-490.0,0.00015722,2]
[366166664,1750097439659,-490.0,0.00015722,2]
[366166666,1750097439668,-490.0,0.00015722,2]
[366166668,1750097439678,-158.41159934,0.00015722,2]
[366166670,1750097439687,-490.0,0.00015722,2]
[366166672,1750097439697,-490.0,0.00015722,2]
[366166674,1750097439707,-436.51651329,0.00015722,2]
[366166676,1750097439716,-490.0,0.00015722,2]
[366166678,1750097439725,-490.0,0.00015722,2]
[366166679,1750097439734,-492.95505936,0.00015722,2]
[366166681,1750097439743,-490.0,0.00015722,2]
[366166683,1750097439753,-490.0,0.00015722,2]
[366166685,1750097439762,-490.0,0.00015722,2]
[366166687,1750097439772,-490.0,0.00015722,2]
[366166689,1750097439781,-490.0,0.00015722,2]
[366166691,1750097439790,-490.0,0.00015722,2]
[366166694,1750097439802,-490.0,0.00015722,2]
[366166696,1750097439812,-490.0,0.00015722,2]
[366166698,1750097439822,-490.0,0.00015722,2]
[366166700,1750097439832,-599.87,0.00015722,2]
[366166702,1750097439842,-482.85830447,0.00015722,2]
[366166704,1750097439851,-490.0,0.00015722,2]
[366166706,1750097439861,-240.17424234,0.00015722,2]
[366166708,1750097439870,-490.0,0.00015722,2]
[366166710,1750097439881,-492.96471602,0.00015722,2]
[366166712,1750097439891,-490.0,0.00015722,2]
[366166714,1750097439900,-490.0,0.00015722,2]
[366166716,1750097439910,-490.0,0.00015722,2]
[366166717,1750097439920,-490.0,0.00015722,2]
[366166719,1750097439930,-490.0,0.00015722,2]
[366166721,1750097439940,-533.11157564,0.00015722,2]
[366166723,1750097439950,-490.0,0.00015722,2]
[366166725,1750097439959,-490.0,0.00015722,2]
[366166727,1750097439969,-629.69546421,0.00015722,2]
[366166729,1750097439979,-497.19141595,0.00015722,2]
[366166732,1750097439989,-490.0,0.00015722,2]
[366166733,1750097439999,-490.0,0.00015722,2]
[366166736,1750097440009,-490.0,0.00015722,2]
[366166737,1750097440019,-490.0,0.00015722,2]
[366166739,1750097440028,-490.0,0.00015722,2]
[366166741,1750097440038,-492.60010863,0.00015722,2]
[366166743,1750097440047,-490.0,0.00015722,2]
[366166746,1750097440057,-756.1,0.00015722,2]
[366166748,1750097440068,-858.35,0.00015722,2]
[366166750,1750097440078,-490.0,0.00015722,2]
[366166752,1750097440088,-492.98038703,0.00015722,2]
[366166754,1750097440098,-536.0787695,0.00015722,2]
[366166756,1750097440108,-490.0,0.00015722,2]
[366166758,1750097440118,-490.0,0.00015722,2]
[366166760,1750097440128,-490.0,0.00015722,2]
[366166762,1750097440138,-490.0,0.00015722,2]
[366166764,1750097440147,-1269.171004,0.00015722,2]
[366166766,1750097440158,-490.0,0.00015722,2]
[366166768,1750097440167,-492.16599123,0.00015722,2]
[366166770,1750097440178,-490.0,0.00015722,2]
[366166772,1750097440187,-490.0,0.00015722,2]
[366166774,1750097440197,-490.0,0.00015722,2]
[366166776,1750097440207,-490.0,0.00015722,2]
[366166778,1750097440217,-1156.22,0.00015722,2]
[366166780,1750097440227,-490.0,0.00015722,2]
[366166782,1750097440236,-490.0,0.00015722,2]
[366166784,1750097440246,-427.8416371,0.00015722,2]
[366166786,1750097440255,-490.0,0.00015722,2]
[366166788,1750097440266,-356.07651127,0.00015722,2]
[366166790,1750097440276,-490.0,0.00015722,2]
[366166792,1750097440285,-530.95,0.00015722,2]
[366166794,1750097440295,-530.50467146,0.00015722,2]
[366166796,1750097440304,-490.0,0.00015722,2]
[366166798,1750097440313,-490.0,0.00015722,2]
[366166800,1750097440323,-490.0,0.00015722,2]
[366166802,1750097440332,-150.30135066,0.00015722,2]
[366166805,1750097440352,-329.69864934,0.00015722,2]
[366166807,1750097440361,-89.9694201,0.00015722,2]
[366166809,1750097440377,-400.0305799,0.00015722,2]
[366166811,1750097440386,-490.0,0.00015722,2]
[366166813,1750097440396,-490.0,0.00015722,2]
[366166815,1750097440405,-496.48919933,0.00015722,2]
[366166817,1750097440415,-490.0,0.00015722,2]
[366166819,1750097440425,-490.0,0.00015722,2]
[366166821,1750097440434,-490.0,0.00015722,2]
[366166823,1750097440444,-490.0,0.00015722,2]
[366166825,1750097440453,-490.0,0.00015722,2]
[366166827,1750097440463,-490.0,0.00015722,2]
[366166829,1750097440472,-490.0,0.00015722,2]
[366166831,1750097440482,-490.0,0.00015722,2]
[366166833,1750097440492,-800.605836,0.00015722,2]
[366166835,1750097440501,-490.29967794,0.00015722,2]
[366166837,1750097440511,-490.0,0.00015722,2]
[366166839,1750097440520,-494.35591029,0.00015722,2]
[366166841,1750097440532,-159.157926,0.00015722,2]
[366166843,1750097440542,-492.90063709,0.00015722,2]
[366166845,1750097440552,-490.0,0.00015722,2]
[366166847,1750097440562,-490.0,0.00015722,2]
[366166849,1750097440573,-490.0,0.00015722,2]
[366166851,1750097440583,-490.0,0.00015722,2]
[366166853,1750097440593,-490.0,0.00015722,2]
[366166855,1750097440605,-490.0,0.00015722,2]
[366166857,1750097440615,-490.0,0.00015722,2]
[366166859,1750097440625,-490.0,0.00015722,2]
[366166861,1750097440635,-826.14,0.00015722,2]
[366166863,1750097440644,-159.541779,0.00015722,2]
[366166865,1750097440654,-490.0,0.00015722,2]
[366166867,1750097440664,-490.0,0.00015722,2]
[366166869,1750097440673,-597.59127177,0.00015722,2]
[366166870,1750097440683,-490.0,0.00015722,2]
[366166871,1750097440692,-490.0,0.00015722,2]
[366166872,1750097440702,-497.1920181,0.00015722,2]
[366166873,1750097440711,-500.0,0.00015722,2]
[366166874,1750097440721,-490.0,0.00015722,2]
[366166875,1750097440730,-502.78743232,0.00015722,2]
[366166876,1750097440739,-490.0,0.00015722,2]